[Event "Austrian Championship Boys-U12 2024"]
[Site "Fuerstenfeld"]
[Date "2024.05.30"]
[Round "1.1"]
[White "Pollak, Tony"]
[Black "Groessing, Daniel-Yosuke"]
[Result "1/2-1/2"]
[ECO "A29"]
[WhiteElo "1461"]
[BlackElo "1892"]
[Annotator "NA RC"]
[PlyCount "86"]
[EventDate "2024.05.28"]
[EventType "swiss"]
[EventCountry "AUT"]
[SourceTitle "playchess.com"]
[Source "ChessBase"]
[SourceQuality "1"]
[TimeControl "5400+30"]

1. c4 {[%emt 0:00:00]} e5 {[%emt 0:00:17]} 2. Nc3 {[%emt 0:00:10]} Nf6 {[%emt 0:00:09]} 3. g3 {[%emt 0:00:07]} d5 {[%emt 0:00:10]} 4. cxd5 {[%emt 0:00:37]} Nxd5 {[%emt 0:00:05]} 5. Bg2 {[%emt 0:00:06]} Nb6 {[%emt 0:00:14]} 6. Nf3 {[%emt 0:02:53]} Nc6 {[%emt 0:00:35]} 7. O-O {[%emt 0:01:01]} Be7 {[%emt 0:00:57]} 8. a3 {[%emt 0:03:57]} a5 {[%emt 0:03:13]} 9. d3 {[%emt 0:03:30]} O-O {[%emt 0:01:18]} 10. Be3 {[%emt 0:02:52]} Be6 {[%emt 0:07:36]} 11. Bxb6 {[%emt 0:08:20]} cxb6 {[%emt 0:00:35]} 12. Nd2 {[%emt 0:07:26]} Rc8 {[%emt 0:02:17]} 13. Nc4 {[%emt 0:02:57]} f6 {[%emt 0:04:43]} 14. b3 {[%emt 0:01:17]} (14. e3 $14) 14... Bc5 $11 {[%emt 0:05:29]} 15. e3 {[%emt 0:14:44]} Qd7 {[%emt 0:03:36]} 16. Qe2 {[%emt 0:07:53]} Kh8 {[%emt 0:07:16]} 17. Rfd1 {[%emt 0:04:02]} Rfd8 {[%emt 0:03:26]} 18. Kh1 {[%emt 0:05:50]} Qf7 {[%emt 0:01:58]} 19. Na4 {[%emt 0:06:18]} Qc7 {[%emt 0:02:35]} 20. Qa2 {[%emt 0:06:44]} Rd7 {[%emt 0:03:37]} 21. Rd2 {[%emt 0:02:32]} Rcd8 {[%emt 0:02:16]} 22. Rad1 {[%emt 0:00:48]} Bg4 {[%emt 0:01:12]} 23. f3 {[%emt 0:00:39]} Be6 {[%emt 0:00:33]} 24. Nxc5 {[%emt 0:00:05]} bxc5 {[%emt 0:00:09]} 25. Qc2 {[%emt 0:02:44]} Ne7 {[%emt 0:04:55]} 26. Nb2 {[%emt 0:00:17]} Nf5 {[%emt 0:02:50]} 27. Re2 {[%emt 0:01:38]} Rd6 {[%emt 0:04:45]} 28. Kg1 {[%emt 0:00:38]} b6 {[%emt 0:00:36]} 29. Kf2 {[%emt 0:01:50]} Qf7 {[%emt 0:01:27]} 30. Nc4 {[%emt 0:01:23]} R6d7 {[%emt 0:14:29]} 31. Qb1 {[%emt 0:00:54]} a4 {[%emt 0:05:08]} 32. Nxb6 {[%emt 0:01:38]} Rb7 {[%emt 0:00:08]} 33. Nxa4 {[%emt 0:00:48]} Rxb3 {[%emt 0:01:54]} 34. Qc1 {[%emt 0:00:34]} Rbxd3 {[%emt 0:07:55]} 35. Rxd3 {[%emt 0:00:14]} Rxd3 {[%emt 0:00:09]} 36. Nxc5 {[%emt 0:00:04]} Rd8 {[%emt 0:01:50]} 37. Nxe6 {[%emt 0:00:39]} Qxe6 {[%emt 0:00:04]} 38. Rc2 {[%emt 0:01:33]} Qb3 {[%emt 0:03:38]} 39. Rc3 {[%emt 0:02:28]} Qa2+ {[%emt 0:00:25]} 40. Rc2 {[%emt 0:00:07]} Qb3 {[%emt 0:00:22]} 41. Rc3 {[%emt 0:00:05]} Qa2+ {[%emt 0:00:05]} 42. Rc2 {[%emt 0:00:05]} Qb3 {[%emt 0:00:06]} 43. Rc3 {[%emt 0:00:04]} Qa2+ {[%emt 0:00:32]} 1/2-1/2

[Event "Austrian Championship Boys-U12 2024"]
[Site "Fuerstenfeld"]
[Date "2024.05.30"]
[Round "1.2"]
[White "Radnaev, Leo"]
[Black "Wu, Lucas"]
[Result "1-0"]
[ECO "B14"]
[WhiteElo "1879"]
[BlackElo "1453"]
[Annotator "NA RC"]
[PlyCount "61"]
[EventDate "2024.05.28"]
[EventType "swiss"]
[EventCountry "AUT"]
[SourceTitle "playchess.com"]
[Source "ChessBase"]
[SourceQuality "1"]
[TimeControl "5400+30"]

1. e4 {[%emt 0:00:04]} c6 {[%emt 0:00:02]} 2. d4 {[%emt 0:00:06]} d5 {[%emt 0:00:04]} 3. exd5 {[%emt 0:00:03]} cxd5 {[%emt 0:00:04]} 4. c4 {[%emt 0:00:07]} e6 {[%emt 0:00:05]} 5. Nc3 {[%emt 0:00:03]} Nf6 {[%emt 0:00:05]} 6. Nf3 {[%emt 0:00:27]} Be7 {[%emt 0:00:14]} 7. Bf4 {[%emt 0:02:15]} O-O {[%emt 0:00:11]} 8. Be2 {[%emt 0:00:42]} dxc4 {[%emt 0:01:21]} 9. Bxc4 {[%emt 0:00:31]} Nc6 {[%emt 0:00:19]} 10. O-O {[%emt 0:00:30]} Bd7 {[%emt 0:00:32] B14: Caro-Kann: Panov-Botvinnik Attack with 5...e6 and 5...g6.} 11. Qe2 {[%emt 0:02:20]} Rc8 {[%emt 0:00:34]} 12. Rac1 {[%emt 0:01:40]} Qb6 {[%emt 0:00:52]} 13. Rfd1 {[%emt 0:00:55]} Rfd8 {[%emt 0:00:49]} 14. a3 {[%emt 0:00:41]} a5 {[%emt 0:01:39]} 15. Na4 {[%emt 0:01:11]} Qa7 {[%emt 0:01:29]} 16. Nc3 {[%emt 0:02:58]} Be8 {[%emt 0:00:30]} 17. a4 {[%emt 0:02:34]} Nxd4 {[%emt 0:01:18]} 18. Nxd4 {[%emt 0:24:52]} Rxd4 {[%emt 0:00:10]} 19. Bxe6 {[%emt 0:09:32]} Rxf4 {[%emt 0:00:34]} 20. Bxc8 {[%emt 0:01:00]} Bc5 {[%emt 0:00:49]} 21. Rf1 {[%emt 0:01:30]} Bc6 $16 {[%emt 0:01:37]} 22. Bh3 {[%emt 0:08:15]} Ne4 {[%emt 0:01:24]} 23. Nxe4 {[%emt 0:00:54]} Rxe4 {[%emt 0:00:08]} 24. Qd2 {[%emt 0:01:31]} Rd4 {[%emt 0:01:08]} 25. Qc3 {[%emt 0:01:37]} Bb4 {[%emt 0:00:38]} 26. Qg3 {[%emt 0:01:18]} Bd6 {[%emt 0:00:40]} 27. Qb3 {[%emt 0:03:46]} Bc5 {[%emt 0:03:11]} 28. Qc2 {[%emt 0:03:34]} Bb6 {[%emt 0:00:11]} 29. Rcd1 {[%emt 0:01:05]} Re4 {[%emt 0:01:29]} 30. Rfe1 {[%emt 0:06:05]} Rf4 {[%emt 0:01:13]} 31. Qxc6 {[%emt 0:02:43]} 1-0

[Event "Austrian Championship Boys-U12 2024"]
[Site "Fuerstenfeld"]
[Date "2024.05.30"]
[Round "1.7"]
[White "Roessler, Lukas Namgyu"]
[Black "Slavskyi, Maksym"]
[Result "0-1"]
[ECO "E12"]
[WhiteElo "1808"]
[BlackElo "1660"]
[Annotator "NA RC"]
[PlyCount "122"]
[EventDate "2024.05.28"]
[EventType "swiss"]
[EventCountry "AUT"]
[SourceTitle "playchess.com"]
[Source "ChessBase"]
[SourceQuality "1"]
[TimeControl "5400+30"]

1. c4 {[%emt 0:00:01]} b6 {[%emt 0:07:08]} 2. d4 {[%emt 0:01:06]} e6 {[%emt 0:00:01]} 3. Nc3 {[%emt 0:00:54]} Nf6 {[%emt 0:00:29]} 4. Bg5 {[%emt 0:00:50]} Bb7 {[%emt 0:00:12]} 5. Nf3 {[%emt 0:02:12]} Be7 {[%emt 0:00:08]} 6. Bxf6 {[%emt 0:02:18]} Bxf6 {[%emt 0:00:50]} 7. e4 {[%emt 0:02:16]} O-O {[%emt 0:02:56]} 8. e5 {[%emt 0:03:22]} Be7 {[%emt 0:00:31]} 9. Be2 {[%emt 0:01:19]} c5 {[%emt 0:00:15]} 10. d5 {[%emt 0:02:11]} exd5 {[%emt 0:01:55]} 11. cxd5 {[%emt 0:02:07]} f6 {[%emt 0:01:27]} 12. d6 {[%emt 0:02:00]} fxe5 {[%emt 0:00:03]} 13. dxe7 {[%emt 0:01:57]} Qxe7 {[%emt 0:00:02]} 14. Nd5 {[%emt 0:02:48]} Qd6 {[%emt 0:00:06]} 15. Bc4 {[%emt 0:02:10]} Kh8 $18 {[%emt 0:00:08]} 16. Ne3 {[%emt 0:09:44]} Qg6 {[%emt 0:03:09]} 17. Nxe5 {[%emt 0:16:51]} Qf6 {[%emt 0:01:55]} 18. N3g4 {[%emt 0:14:46]} Qf4 {[%emt 0:01:14]} 19. Qd6 {[%emt 0:10:24]} Qe4+ {[%emt 0:04:04]} 20. Ne3 {[%emt 0:03:21]} Nc6 {[%emt 0:00:30]} 21. Nf7+ {[%emt 0:03:19]} Rxf7 {[%emt 0:00:49]} 22. Bxf7 {[%emt 0:02:07]} Ne5 {[%emt 0:00:02]} 23. Bd5 {[%emt 0:13:57]} Qb4+ {[%emt 0:00:42]} 24. Kd1 {[%emt 0:00:00]} Qxb2 {[%emt 0:00:31]} 25. Rc1 {[%emt 0:00:00]} Ba6 {[%emt 0:00:01]} 26. Bc4 {[%emt 0:00:34]} b5 {[%emt 0:00:38]} 27. Qd5 {[%emt 0:00:15]} Re8 {[%emt 0:00:20]} 28. Qd6 {[%emt 0:00:44]} Nxc4 {[%emt 0:00:09]} 29. Qxd7 {[%emt 0:00:45]} Nxe3+ {[%emt 0:00:40]} 30. fxe3 {[%emt 0:00:26]} Rf8 {[%emt 0:00:10]} 31. Qe7 {[%emt 0:00:22]} Rc8 {[%emt 0:00:16]} 32. Rf1 {[%emt 0:00:18]} h6 {[%emt 0:01:35]} 33. Rf8+ {[%emt 0:00:29]} Rxf8 {[%emt 0:00:02]} 34. Qxf8+ {[%emt 0:00:07]} Kh7 {[%emt 0:00:08]} 35. Qxc5 {[%emt 0:00:59]} Qf6 {[%emt 0:01:29]} 36. Qc2+ {[%emt 0:00:50]} Kh8 {[%emt 0:00:02]} 37. Qc6 {[%emt 0:00:27]} Qf1+ {[%emt 0:00:09]} 38. Kd2 {[%emt 0:00:23]} Qf2+ {[%emt 0:00:25]} 39. Kd3 {[%emt 0:00:38]} b4+ {[%emt 0:00:02]} 40. Qxa6 {[%emt 0:00:13]} Qf5+ {[%emt 0:00:03]} 41. e4 {[%emt 0:00:33]} Qd7+ {[%emt 0:00:03]} 42. Ke3 {[%emt 0:00:29]} Qe7 {[%emt 0:00:35]} 43. Qd3 {[%emt 0:00:43]} Qg5+ {[%emt 0:00:03]} 44. Kf3 {[%emt 0:00:38]} Qxc1 {[%emt 0:00:02]} 45. Qb3 {[%emt 0:00:29]} Qf1+ {[%emt 0:00:06]} 46. Kg3 {[%emt 0:00:20]} a5 {[%emt 0:00:04]} 47. e5 {[%emt 0:00:35]} g5 {[%emt 0:00:06]} 48. Qe3 {[%emt 0:00:39]} Kg7 {[%emt 0:00:41]} 49. Qa7+ {[%emt 0:00:17]} Qf7 {[%emt 0:00:09]} 50. Qd4 {[%emt 0:00:40]} Qe6 {[%emt 0:00:39]} 51. Kf3 {[%emt 0:00:30]} Qxa2 {[%emt 0:00:18]} 52. e6+ {[%emt 0:00:14]} Kg6 {[%emt 0:00:23]} 53. Qe4+ {[%emt 0:00:48]} Kf6 {[%emt 0:00:42]} 54. e7 {[%emt 0:00:28]} Qb3+ {[%emt 0:00:13]} 55. Kg4 {[%emt 0:00:33]} Qd1+ {[%emt 0:00:03]} 56. Kg3 {[%emt 0:00:21]} Qd6+ {[%emt 0:00:08]} 57. Kg4 {[%emt 0:00:39]} Qd7+ {[%emt 0:00:16]} 58. Kh5 {[%emt 0:00:28]} Qe8+ {[%emt 0:00:06]} 59. Kg4 {[%emt 0:00:07]} Qxe7 {[%emt 0:00:20]} 60. Qf5+ {[%emt 0:00:41]} Kg7 {[%emt 0:00:01]} 61. Qxa5 {[%emt 0:00:29]} Qe4+ {[%emt 0:00:08]} 0-1

[Event "Austrian Championship Boys-U12 2024"]
[Site "Fuerstenfeld"]
[Date "2024.05.30"]
[Round "1.8"]
[White "Atlas, Daniel"]
[Black "Koch, Paul"]
[Result "1-0"]
[ECO "C54"]
[WhiteElo "1629"]
[BlackElo "1659"]
[Annotator "NA RC"]
[PlyCount "123"]
[EventDate "2024.05.28"]
[EventType "swiss"]
[EventCountry "AUT"]
[SourceTitle "playchess.com"]
[Source "ChessBase"]
[SourceQuality "1"]
[TimeControl "5400+30"]

1. e4 {[%emt 0:00:04]} e5 {[%emt 0:00:00]} 2. Nf3 {[%emt 0:00:10]} Nc6 {[%emt 0:00:02]} 3. Bc4 {[%emt 0:00:11]} Bc5 {[%emt 0:00:04]} 4. c3 {[%emt 0:00:15]} Nf6 {[%emt 0:00:05]} 5. d3 {[%emt 0:00:09]} h6 {[%emt 0:00:07]} 6. Nbd2 {[%emt 0:00:21]} d6 {[%emt 0:00:09]} 7. O-O {[%emt 0:00:20]} Be6 {[%emt 0:00:11]} 8. Bb3 {[%emt 0:00:19]} a6 {[%emt 0:00:12]} 9. Re1 {[%emt 0:00:40]} Ba7 {[%emt 0:00:16]} 10. Nf1 {[%emt 0:00:25]} Qd7 {[%emt 0:00:20]} 11. Ng3 {[%emt 0:00:42]} g6 {[%emt 0:00:10]} 12. Be3 {[%emt 0:01:41]} O-O-O {[%emt 0:02:54]} 13. Bxa7 {[%emt 0:03:33]} Nxa7 {[%emt 0:00:10]} 14. Ba4 {[%emt 0:00:24]} Qe7 {[%emt 0:01:19]} 15. b4 {[%emt 0:02:06]} b5 {[%emt 0:00:58]} 16. Bb3 {[%emt 0:00:30]} Kd7 {[%emt 0:00:24]} 17. a4 {[%emt 0:00:52]} Ra8 {[%emt 0:00:40]} 18. d4 {[%emt 0:05:08]} Ke8 {[%emt 0:03:46]} 19. h3 {[%emt 0:08:39]} Kf8 {[%emt 0:00:19]} 20. Qb1 {[%emt 0:00:41]} Kg7 {[%emt 0:01:26]} 21. Qa2 {[%emt 0:01:38]} Rhe8 {[%emt 0:06:02]} 22. Bxe6 {[%emt 0:00:42]} Qxe6 {[%emt 0:00:27]} 23. d5 {[%emt 0:00:12]} Qd7 {[%emt 0:00:50]} 24. a5 {[%emt 0:00:11]} c6 {[%emt 0:02:28]} 25. c4 {[%emt 0:03:15]} cxd5 {[%emt 0:00:38]} 26. cxd5 {[%emt 0:02:15]} Rac8 {[%emt 0:01:33]} 27. Rac1 {[%emt 0:02:46]} Qb7 {[%emt 0:02:27]} 28. Qd2 {[%emt 0:01:09]} Qe7 {[%emt 0:00:45]} 29. Nh4 {[%emt 0:02:42]} Kh7 {[%emt 0:01:35]} 30. Qe3 {[%emt 0:04:37]} Ra8 {[%emt 0:01:00]} 31. Rc3 {[%emt 0:03:55]} Rec8 {[%emt 0:02:29]} 32. Rec1 {[%emt 0:00:50]} Nd7 {[%emt 0:02:56]} 33. Rc7 {[%emt 0:02:29]} Rxc7 {[%emt 0:01:02]} 34. Rxc7 {[%emt 0:00:13]} Qd8 {[%emt 0:00:26]} 35. Rxa7 {[%emt 0:08:05]} Rxa7 {[%emt 0:02:12]} 36. Qxa7 {[%emt 0:00:15]} Qxh4 {[%emt 0:00:10]} 37. Qxd7 {[%emt 0:00:11]} Qf6 {[%emt 0:00:14]} 38. Qb7 {[%emt 0:01:02]} Kg7 {[%emt 0:00:34]} 39. Qxa6 {[%emt 0:00:20]} h5 {[%emt 0:01:04]} 40. Qxb5 {[%emt 0:00:40]} Qf4 {[%emt 0:00:26]} 41. Qd3 {[%emt 0:01:00]} Qc1+ {[%emt 0:00:26]} 42. Nf1 {[%emt 0:00:21]} Qb2 {[%emt 0:00:13]} 43. b5 {[%emt 0:00:29]} Qa2 {[%emt 0:00:17]} 44. a6 {[%emt 0:00:32]} Qa5 {[%emt 0:00:07]} 45. Qc4 {[%emt 0:00:25]} Qb6 {[%emt 0:00:16]} 46. Qc6 {[%emt 0:00:29]} Qb8 {[%emt 0:00:14]} 47. b6 {[%emt 0:00:18]} g5 {[%emt 0:00:24]} 48. a7 {[%emt 0:00:10]} Qd8 {[%emt 0:00:16]} 49. a8=Q {[%emt 0:46:39]} Qxa8 {[%emt 0:00:03]} 50. Qxa8 {[%emt 0:00:00]} g4 {[%emt 0:00:11]} 51. hxg4 {[%emt 0:00:00]} hxg4 {[%emt 0:00:05]} 52. b7 {[%emt 0:00:00]} g3 {[%emt 0:00:17]} 53. b8=Q {[%emt 0:02:00]} gxf2+ {[%emt 0:00:07]} 54. Kxf2 {[%emt 0:00:00]} f5 {[%emt 0:00:09]} 55. Qf8+ {[%emt 0:00:00]} Kg6 {[%emt 0:00:09]} 56. Qae8+ {[%emt 0:00:00]} Kg5 {[%emt 0:00:09]} 57. Qg7+ {[%emt 0:00:00]} Kf4 {[%emt 0:00:11]} 58. Qg3+ {[%emt 0:00:00]} Kxe4 {[%emt 0:00:08]} 59. Qc6 {[%emt 0:03:00]} f4 {[%emt 0:01:32]} 60. Nd2+ {[%emt 0:00:00]} Kf5 {[%emt 0:00:12]} 61. Qd7+ {[%emt 0:00:00]} Kf6 {[%emt 0:00:15]} 62. Ne4# {[%emt 0:00:00]} 1-0

[Event "Austrian Championship Boys-U12 2024"]
[Site "Fuerstenfeld"]
[Date "2024.05.30"]
[Round "2.1"]
[White "Perfler, Daniel"]
[Black "Radnaev, Leo"]
[Result "1/2-1/2"]
[ECO "B52"]
[WhiteElo "1623"]
[BlackElo "1879"]
[Annotator "NA RC"]
[PlyCount "81"]
[EventDate "2024.05.28"]
[EventType "swiss"]
[EventCountry "AUT"]
[SourceTitle "playchess.com"]
[Source "ChessBase"]
[SourceQuality "1"]
[TimeControl "5400+30"]

1. e4 {[%emt 0:00:04]} c5 {[%emt 0:00:01]} 2. Nf3 {[%emt 0:00:06]} d6 {[%emt 0:00:03]} 3. Bb5+ {[%emt 0:00:13]} Bd7 {[%emt 0:00:06]} 4. Bxd7+ {[%emt 0:00:23]} Qxd7 {[%emt 0:00:01]} 5. c4 {[%emt 0:01:12]} Nf6 {[%emt 0:00:25]} 6. Nc3 {[%emt 0:00:23]} g6 {[%emt 0:00:09]} 7. d3 {[%emt 0:07:24]} Bg7 {[%emt 0:00:22]} 8. O-O {[%emt 0:04:07]} O-O {[%emt 0:00:08]} 9. Be3 {[%emt 0:08:39]} Nc6 {[%emt 0:00:38]} 10. Qd2 {[%emt 0:03:09]} Rfd8 {[%emt 0:02:05]} 11. Rad1 {[%emt 0:06:02]} Rac8 {[%emt 0:01:15]} 12. Rfe1 {[%emt 0:02:34]} e6 {[%emt 0:06:19]} 13. b3 {[%emt 0:02:14]} a6 {[%emt 0:14:45]} 14. d4 {[%emt 0:06:10]} cxd4 {[%emt 0:00:04]} 15. Nxd4 {[%emt 0:01:02]} Ng4 {[%emt 0:01:05]} 16. Nxc6 {[%emt 0:01:47]} Nxe3 {[%emt 0:04:15]} 17. Nxd8 {[%emt 0:04:12]} Nxd1 {[%emt 0:00:08]} 18. Rxd1 {[%emt 0:00:26]} Rxd8 {[%emt 0:00:12]} 19. Ne2 {[%emt 0:06:00]} Qc6 {[%emt 0:01:33]} 20. Ng3 {[%emt 0:02:33]} Qc5 {[%emt 0:02:00]} 21. Kf1 {[%emt 0:02:08]} a5 {[%emt 0:05:25]} 22. Ke2 {[%emt 0:05:07]} Bf6 {[%emt 0:05:20]} 23. Qe3 {[%emt 0:02:02]} Qb4 {[%emt 0:02:42]} 24. Qd2 {[%emt 0:06:07]} Qa3 {[%emt 0:00:50]} 25. Kf1 {[%emt 0:03:08]} Kg7 {[%emt 0:03:30]} 26. Ne2 {[%emt 0:01:23]} Qc5 {[%emt 0:04:18]} 27. Ng3 {[%emt 0:02:08]} h6 {[%emt 0:02:20]} 28. Ke2 {[%emt 0:01:46]} h5 {[%emt 0:03:06]} 29. h3 {[%emt 0:01:12]} Kg8 {[%emt 0:06:47]} 30. Ke1 {[%emt 0:04:01]} Qe5 {[%emt 0:05:41]} 31. Qe2 {[%emt 0:02:00]} Qc3+ {[%emt 0:01:10]} 32. Qd2 {[%emt 0:01:07]} Qe5 {[%emt 0:00:21]} 33. Qe2 {[%emt 0:00:23]} Kf8 {[%emt 0:02:40]} 34. Kf1 {[%emt 0:01:29]} h4 {[%emt 0:00:25]} 35. Nh1 {[%emt 0:00:19]} Ke7 {[%emt 0:00:54]} 36. f3 {[%emt 0:01:16]} Rd7 {[%emt 0:02:56]} 37. Nf2 {[%emt 0:00:43]} Bg7 {[%emt 0:01:23]} 38. Ng4 {[%emt 0:00:52]} Qc5 {[%emt 0:00:23]} 39. Qf2 {[%emt 0:00:47]} Qb4 {[%emt 0:00:15]} 40. Qxh4+ {[%emt 0:00:36]} Kf8 {[%emt 0:01:09]} 41. Qf2 {[%emt 0:00:42]} 1/2-1/2

[Event "Austrian Championship Boys-U12 2024"]
[Site "Fuerstenfeld"]
[Date "2024.05.30"]
[Round "2.2"]
[White "Pleimer, Noah"]
[Black "Lins, Jakob"]
[Result "1-0"]
[ECO "D64"]
[WhiteElo "1836"]
[BlackElo "1611"]
[Annotator "NA RC"]
[PlyCount "87"]
[EventDate "2024.05.28"]
[EventType "swiss"]
[EventCountry "AUT"]
[SourceTitle "playchess.com"]
[Source "ChessBase"]
[SourceQuality "1"]
[TimeControl "5400+30"]

1. d4 {[%emt 0:00:01]} d5 {[%emt 0:00:05]} 2. c4 {[%emt 0:00:07]} e6 {[%emt 0:00:05]} 3. Nc3 {[%emt 0:00:06]} Nf6 {[%emt 0:00:05]} 4. Bg5 {[%emt 0:00:09]} Be7 {[%emt 0:00:08]} 5. e3 {[%emt 0:00:15]} h6 {[%emt 0:00:10]} 6. Bh4 {[%emt 0:00:06]} O-O {[%emt 0:00:07]} 7. Nf3 {[%emt 0:00:14]} Re8 {[%emt 0:00:36]} 8. Qc2 {[%emt 0:00:23]} c6 {[%emt 0:00:53]} 9. Rc1 {[%emt 0:00:34]} Nbd7 {[%emt 0:00:53]} 10. Be2 {[%emt 0:01:01]} Nb6 {[%emt 0:04:02]} 11. b3 {[%emt 0:02:21]} Nbd7 {[%emt 0:05:35]} 12. Bg3 {[%emt 0:02:09]} Nf8 {[%emt 0:03:40]} 13. Ne5 {[%emt 0:01:06]} Bd6 {[%emt 0:02:28]} 14. O-O {[%emt 0:01:02]} N6d7 {[%emt 0:14:34]} 15. Nxc6 {[%emt 0:01:26]} bxc6 {[%emt 0:02:39]} 16. Bxd6 {[%emt 0:00:05]} Nf6 {[%emt 0:02:00]} 17. Bg3 {[%emt 0:00:37]} N8d7 {[%emt 0:10:15]} 18. cxd5 {[%emt 0:01:07]} exd5 {[%emt 0:04:06]} 19. Bd3 {[%emt 0:02:14]} Nh5 {[%emt 0:02:05]} 20. Na4 {[%emt 0:01:04]} Bb7 {[%emt 0:01:21]} 21. Nc5 {[%emt 0:00:58]} Nxc5 {[%emt 0:00:47]} 22. Qxc5 {[%emt 0:00:12]} Nxg3 {[%emt 0:01:32]} 23. hxg3 {[%emt 0:00:10]} Qb6 {[%emt 0:01:58]} 24. Rc3 {[%emt 0:00:35]} h5 {[%emt 0:03:37]} 25. Be2 {[%emt 0:00:57]} g6 {[%emt 0:01:22]} 26. a4 {[%emt 0:00:43]} Qd8 {[%emt 0:01:03]} 27. a5 {[%emt 0:00:56]} a6 {[%emt 0:00:14]} 28. Bf3 {[%emt 0:00:31]} h4 {[%emt 0:01:10]} 29. gxh4 {[%emt 0:00:28]} Qxh4 {[%emt 0:00:10]} 30. g3 {[%emt 0:00:35]} Qh6 {[%emt 0:00:15]} 31. Kg2 {[%emt 0:00:18]} Kg7 {[%emt 0:00:43]} 32. Rh1 {[%emt 0:00:33]} Qg5 {[%emt 0:00:06]} 33. Rcc1 {[%emt 0:00:28]} Rh8 {[%emt 0:00:39]} 34. b4 {[%emt 0:00:21]} Qf5 {[%emt 0:00:53]} 35. Qe7 {[%emt 0:01:00]} Bc8 {[%emt 0:03:21]} 36. Rxh8 {[%emt 0:00:23]} Kxh8 {[%emt 0:00:21]} 37. Qf8+ {[%emt 0:00:09]} Kh7 {[%emt 0:00:15]} 38. Rh1+ {[%emt 0:00:03]} Qh3+ {[%emt 0:00:13]} 39. Kg1 {[%emt 0:00:20]} Qxh1+ {[%emt 0:02:39]} 40. Kxh1 {[%emt 0:00:10]} Bg4 {[%emt 0:00:17]} 41. Qxf7+ {[%emt 0:00:19]} Kh6 {[%emt 0:00:45]} 42. Bxg4 {[%emt 0:00:05]} Rh8 {[%emt 0:00:13]} 43. Kg2 {[%emt 0:00:22]} Kg5 {[%emt 0:00:18]} 44. Qf4# {[%emt 0:00:41]} 1-0

[Event "Austrian Championship Boys-U12 2024"]
[Site "Fuerstenfeld"]
[Date "2024.05.30"]
[Round "2.3"]
[White "Feiertag, Niklas"]
[Black "Chen, Chicheng Leon"]
[Result "0-1"]
[ECO "E43"]
[WhiteElo "1577"]
[BlackElo "1827"]
[Annotator "NA RC"]
[PlyCount "96"]
[EventDate "2024.05.28"]
[EventType "swiss"]
[EventCountry "AUT"]
[SourceTitle "playchess.com"]
[Source "ChessBase"]
[SourceQuality "1"]
[TimeControl "5400+30"]

1. d4 {[%emt 0:00:08]} Nf6 {[%emt 0:00:05]} 2. c4 {[%emt 0:00:25]} e6 {[%emt 0:00:04]} 3. Nc3 {[%emt 0:00:08]} Bb4 {[%emt 0:00:03]} 4. e3 {[%emt 0:00:42]} b6 {[%emt 0:00:24]} 5. Nf3 {[%emt 0:00:23]} Bb7 {[%emt 0:00:25]} 6. Be2 {[%emt 0:00:21]} Ne4 {[%emt 0:00:54]} 7. Bd2 {[%emt 0:00:17]} Bxc3 {[%emt 0:01:01]} 8. Bxc3 {[%emt 0:02:42]} Nxc3 {[%emt 0:01:23]} 9. bxc3 {[%emt 0:00:08]} d6 {[%emt 0:00:17]} 10. O-O {[%emt 0:05:02]} Nd7 {[%emt 0:00:20]} 11. Bd3 {[%emt 0:02:23]} O-O {[%emt 0:01:28]} 12. Re1 {[%emt 0:03:18]} e5 {[%emt 0:02:28]} 13. d5 {[%emt 0:02:46]} Nc5 {[%emt 0:01:28]} 14. e4 {[%emt 0:04:13]} Qe7 {[%emt 0:00:29]} 15. Re3 {[%emt 0:04:47]} Rae8 {[%emt 0:07:30]} 16. Nd2 {[%emt 0:01:01]} Bc8 {[%emt 0:01:25]} 17. Nb3 {[%emt 0:02:39]} Nxd3 {[%emt 0:06:43]} 18. Rxd3 {[%emt 0:00:08]} f5 {[%emt 0:00:14]} 19. Nd2 {[%emt 0:04:06]} f4 {[%emt 0:02:04]} 20. g3 {[%emt 0:03:31]} Qg5 {[%emt 0:02:37]} 21. Nf3 {[%emt 0:01:44]} Qh6 {[%emt 0:00:54]} 22. Qe2 {[%emt 0:01:50]} Bg4 {[%emt 0:03:04]} 23. a4 {[%emt 0:08:55]} a5 {[%emt 0:00:06]} 24. h4 {[%emt 0:04:51]} Qh5 {[%emt 0:00:34]} 25. Kg2 {[%emt 0:00:13]} Re7 {[%emt 0:02:31]} 26. Rf1 {[%emt 0:01:27]} Bd7 {[%emt 0:00:56]} 27. Qd1 {[%emt 0:06:07]} Qg4 {[%emt 1:04:33]} 28. Ng5 {[%emt 0:01:33]} Qxd1 {[%emt 0:00:00]} 29. Rfxd1 {[%emt 0:00:38]} Bxa4 {[%emt 0:00:00]} 30. R1d2 {[%emt 0:03:10]} Bd7 {[%emt 0:00:00]} 31. f3 {[%emt 0:00:50]} h6 {[%emt 0:00:00]} 32. Nh3 {[%emt 0:00:13]} fxg3 {[%emt 0:00:00]} 33. Kxg3 {[%emt 0:00:08]} Ref7 {[%emt 0:00:00]} 34. Rf2 {[%emt 0:00:16]} Bc8 {[%emt 0:00:00]} 35. Ng1 {[%emt 0:00:40]} Ba6 {[%emt 0:00:00]} 36. Ne2 {[%emt 0:00:15]} Bxc4 {[%emt 0:00:00]} 37. Rd2 {[%emt 0:00:06]} Bxe2 {[%emt 0:00:00]} 38. Rdxe2 {[%emt 0:00:11]} Rf4 {[%emt 0:00:00]} 39. Ra2 {[%emt 0:00:59]} g5 {[%emt 0:00:00]} 40. hxg5 {[%emt 0:00:18]} hxg5 {[%emt 0:00:00]} 41. Ra1 {[%emt 0:00:15]} g4 {[%emt 0:00:00]} 42. Rh2 {[%emt 0:00:11]} Rxf3+ {[%emt 0:00:00]} 43. Kxg4 {[%emt 0:00:06]} R8f4+ {[%emt 0:00:00]} 44. Kg5 {[%emt 0:00:02]} Rg3+ {[%emt 0:00:00]} 45. Kh6 {[%emt 0:00:19]} Rf7 {[%emt 0:00:00]} 46. Rg2 {[%emt 0:00:49]} Rxg2 {[%emt 0:00:00]} 47. Rg1 {[%emt 0:00:10]} Rxg1 {[%emt 0:00:00]} 48. c4 {[%emt 0:00:08]} Rh7# {[%emt 0:00:00]} 0-1